bitfinex/quotes_BTCUSD_20250822
["timestamp","ask_amount","ask_price","bid_price","bid_amount"]
[1755870917539,0.17738359,112750.0,112740.0,0.00540462]
[1755870917857,0.79705431,112750.0,112740.0,0.00540462]
[1755870918219,0.17738359,112750.0,112740.0,0.00540462]
[1755870918582,0.88492396,112750.0,112740.0,0.01140462]
[1755870918872,0.19226632,112750.0,112740.0,0.01340462]
[1755870919279,0.19226632,112750.0,112740.0,0.19080394]
[1755870919500,0.19226632,112750.0,112740.0,0.01340462]
[1755870919940,0.19226632,112750.0,112740.0,0.19080394]
[1755870920344,0.19226632,112750.0,112740.0,0.18044462]
[1755870921281,0.90061669,112750.0,112740.0,0.01018462]
[1755870921483,0.28094597,112750.0,112740.0,0.17522462]
[1755870921756,0.81374704,112750.0,112740.0,0.17522462]
[1755870921977,1.15681704,112750.0,112740.0,0.00818462]
[1755870922406,1.15374704,112750.0,112740.0,0.00818462]
[1755870922621,0.53407632,112750.0,112740.0,0.00818462]
[1755870922839,1.22519846,112750.0,112740.0,0.01028462]
[1755870923063,1.22338846,112750.0,112740.0,0.01350462]
[1755870923274,0.60371774,112750.0,112740.0,0.01350462]
[1755870923486,0.63388621,112750.0,112740.0,0.01350462]
[1755870923692,1.25555693,112750.0,112740.0,0.00818462]
[1755870924110,6.25863693,112750.0,112740.0,0.00818462]
[1755870924949,5.63896621,112750.0,112740.0,0.00818462]
[1755870925423,6.2447542,112750.0,112740.0,0.00818462]
[1755870925607,5.62200348,112750.0,112740.0,0.01028462]
[1755870925824,6.2416742,112750.0,112740.0,0.01028462]
[1755870925950,6.2447542,112750.0,112740.0,0.00818462]
[1755870926388,6.26220322,112750.0,112740.0,0.00818462]
[1755870926876,5.6425325,112750.0,112740.0,0.00818462]
[1755870927084,6.26220322,112750.0,112740.0,0.00818462]
[1755870927287,5.6425325,112750.0,112740.0,0.00818462]
[1755870927502,6.26220322,112750.0,112740.0,0.00818462]
[1755870929441,6.26220322,112750.0,112740.0,0.00618462]
[1755870929643,6.27608683,112750.0,112740.0,0.00618462]
[1755870930074,6.27608683,112750.0,112740.0,0.00018462]
[1755870930282,6.27200683,112750.0,112740.0,0.00018462]
[1755870930481,6.27300683,112750.0,112740.0,0.00418462]
[1755870931273,6.27508683,112750.0,112740.0,0.00018462]
[1755870931489,6.27508683,112750.0,112740.0,0.00418462]
[1755870931681,6.27608683,112750.0,112740.0,0.00418462]
[1755870932225,6.27608683,112750.0,112740.0,0.01018462]
[1755870932426,7.06367755,112750.0,112740.0,0.01018462]
[1755870932830,0.19484834,112740.0,112730.0,0.00044]
[1755870933033,6.11220771,112740.0,112730.0,0.00058457]
[1755870933246,6.11220771,112740.0,112730.0,1e-08]
[1755870933247,6.47879086,112740.0,112730.0,1e-08]
[1755870933452,0.19487982,112720.0,112710.0,0.00044]
[1755870933655,5.84186691,112720.0,112710.0,0.00044]
[1755870933892,1.15456628,112710.0,112700.0,0.00054]
[1755870934102,6.4356323,112710.0,112700.0,0.00054]
[1755870934280,6.46222298,112710.0,112700.0,0.00054]
[1755870934698,6.29534298,112710.0,112700.0,0.00054]
[1755870934899,6.31229854,112710.0,112700.0,0.00054]
[1755870935461,6.31329854,112710.0,112700.0,0.00454]
[1755870936034,5.69362782,112710.0,112700.0,0.00454]
[1755870936262,6.31329854,112710.0,112700.0,0.00454]
[1755870936457,0.81458202,112700.0,112690.0,0.00044]
[1755870936673,6.54842261,112700.0,112690.0,0.00044]
[1755870936884,6.71838261,112700.0,112690.0,0.00044]
[1755870937090,6.09871189,112700.0,112690.0,0.00044]
[1755870937295,6.11260231,112700.0,112690.0,0.00044]
[1755870937755,5.93183189,112700.0,112690.0,0.00092199]
[1755870937965,5.31216117,112700.0,112690.0,0.00092199]
[1755870938171,6.55150261,112700.0,112690.0,0.00092199]
[1755870938388,7.05838261,112700.0,112690.0,0.00092199]
[1755870938598,6.50695036,112700.0,112690.0,1e-08]
[1755870938808,6.53084902,112700.0,112690.0,1e-08]
[1755870939233,6.51112123,112700.0,112690.0,1e-08]
[1755870939436,6.48761055,112700.0,112690.0,1e-08]
[1755870939653,6.95499834,112700.0,112690.0,1e-08]
[1755870939852,7.59817974,112700.0,112690.0,1e-08]
[1755870940089,0.5349428,112680.0,112670.0,0.00044]
[1755870940275,6.24540219,112680.0,112670.0,0.00044]
[1755870940484,5.64474019,112680.0,112670.0,0.00044]
[1755870940689,6.26749091,112680.0,112670.0,0.00044]
[1755870940894,6.26749091,112680.0,112670.0,1e-08]
[1755870941097,6.41532219,112680.0,112670.0,1e-08]
[1755870941298,6.25929551,112680.0,112670.0,1e-08]
[1755870941523,6.29948745,112680.0,112670.0,1e-08]
[1755870941733,5.67781673,112680.0,112670.0,0.00210001]
[1755870941944,5.67781673,112680.0,112670.0,0.00532001]
[1755870941945,6.21490081,112680.0,112670.0,0.00532001]
[1755870942182,6.22290081,112680.0,112670.0,0.00532001]
[1755870942401,6.18270887,112680.0,112670.0,0.00532001]
[1755870942609,6.1826884,112680.0,112670.0,0.00532001]
[1755870942821,5.56301768,112680.0,112670.0,0.00532001]
[1755870943041,5.20556866,112680.0,112670.0,0.00532001]
[1755870943471,6.16523938,112680.0,112670.0,0.00532001]
[1755870943928,5.54556866,112680.0,112670.0,0.00532001]
[1755870944125,5.97201701,112680.0,112670.0,0.00532001]
[1755870944334,6.16523938,112680.0,112670.0,0.00532001]
[1755870944551,5.54556866,112680.0,112670.0,0.00532001]
[1755870944974,0.1993871,112680.0,112670.0,0.00532001]
[1755870945214,0.18549378,112680.0,112670.0,0.00532001]
[1755870945425,0.52549378,112680.0,112670.0,0.00532001]
[1755870946996,1.1451645,112680.0,112670.0,0.00532001]
[1755870947212,1.1451645,112680.0,112670.0,0.00210001]
[1755870947431,6.27245939,112680.0,112670.0,1e-08]
[1755870947637,6.28363693,112680.0,112670.0,0.00100001]
[1755870948068,6.28063693,112680.0,112670.0,0.00100001]
[1755870948276,6.28364693,112680.0,112670.0,0.00100001]
[1755870948919,6.28364693,112680.0,112670.0,0.00200001]
[1755870949594,6.26619791,112680.0,112670.0,0.00200001]
[1755870949817,6.29754038,112680.0,112670.0,0.00200001]
[1755870950019,6.50387251,112680.0,112670.0,1e-08]
[1755870950449,6.50794251,112680.0,112670.0,1e-08]
[1755870950868,6.50594251,112680.0,112670.0,1e-08]
[1755870951304,5.88927179,112680.0,112670.0,1e-08]
[1755870951724,5.89227179,112680.0,112670.0,1e-08]
[1755870952144,5.91578247,112680.0,112670.0,1e-08]
[1755870952358,5.93473041,112680.0,112670.0,1e-08]
[1755870952562,5.91121973,112680.0,112670.0,1e-08]
[1755870952985,5.74449973,112680.0,112670.0,1e-08]
[1755870953195,0.19495856,112670.0,112660.0,0.00044]
[1755870953403,5.29008575,112670.0,112660.0,0.00044]
[1755870953830,5.90975647,112670.0,112660.0,0.00254]
[1755870953980,5.29008575,112670.0,112660.0,0.00254]
[1755870954201,5.82288682,112670.0,112660.0,0.00254]
[1755870954582,5.8043578,112670.0,112660.0,0.00567]
[1755870954784,5.79818026,112670.0,112660.0,0.00567]
[1755870955005,5.18469375,112670.0,112660.0,0.00567]
[1755870955207,5.52469375,112670.0,112660.0,0.00567]
[1755870955425,5.52469597,112670.0,112660.0,0.00567]
[1755870955809,5.61156524,112670.0,112660.0,0.00567]
[1755870956012,0.52469559,112670.0,112660.0,0.00567]
[1755870956242,0.52469559,112670.0,112660.0,0.00667]
[1755870957184,1.14436631,112670.0,112660.0,0.00667]
[1755870957655,0.52469559,112670.0,112660.0,0.00667]
[1755870957870,6.22106621,112670.0,112660.0,0.00354]
[1755870958079,6.22106621,112670.0,112660.0,0.00144]
[1755870958303,6.24010921,112670.0,112660.0,0.00144]
[1755870959407,6.24311921,112670.0,112660.0,0.00144]
[1755870959661,6.26056823,112670.0,112660.0,0.00144]
[1755870960345,5.56118761,112670.0,112660.0,0.00667]
[1755870960579,0.20373859,112670.0,112660.0,0.00667]
[1755870960804,0.18369559,112670.0,112660.0,0.00667]
[1755870961020,0.20277125,112670.0,112660.0,0.00567]
[1755870961230,1.16446718,112670.0,112660.0,0.00567]
[1755870961453,1.25133683,112670.0,112660.0,0.00567]
[1755870961673,1.25341683,112670.0,112660.0,0.00044]
[1755870961882,1.29574807,112670.0,112660.0,0.00044]
[1755870962088,6.31620709,112670.0,112660.0,0.00044]
[1755870962302,0.17754105,112650.0,112640.0,0.16840974]
[1755870962516,0.20282797,112650.0,112640.0,0.17050974]
[1755870963183,0.20287374,112650.0,112640.0,0.17050974]
[1755870963637,0.20287374,112650.0,112640.0,0.00405466]
[1755870963846,0.82462446,112650.0,112640.0,0.00224492]
[1755870964055,0.33230501,112650.0,112640.0,0.00224492]
[1755870964300,0.95405573,112650.0,112640.0,0.00224492]
[1755870964504,0.95405573,112650.0,112640.0,0.00524492]
[1755870964710,0.24543536,112650.0,112640.0,0.00837492]
[1755870964934,0.20487374,112650.0,112640.0,0.00837492]
[1755870966225,0.20487374,112650.0,112640.0,0.18593173]
[1755870966754,0.20487374,112650.0,112640.0,0.00837492]
[1755870966965,0.20487374,112650.0,112640.0,0.18593173]
[1755870967386,0.02733269,112650.0,112640.0,0.18593173]
[1755870967610,0.02733269,112650.0,112640.0,0.80560245]
[1755870967847,0.00823182,112650.0,112640.0,0.80560245]
[1755870968529,0.00823182,112650.0,112640.0,0.35245173]
[1755870968735,0.00823182,112650.0,112640.0,0.18593173]
[1755870968965,0.00823182,112650.0,112640.0,0.35245173]
[1755870969624,0.00823182,112650.0,112640.0,0.18293173]
[1755870969830,0.18377287,112650.0,112640.0,0.00537492]
[1755870970038,0.18577287,112650.0,112640.0,0.35245173]
[1755870970250,0.00823182,112650.0,112640.0,0.35245173]
[1755870970696,0.00823182,112650.0,112640.0,0.97212245]
[1755870970903,0.03807433,112650.0,112640.0,0.97212245]
[1755870971111,0.00823182,112650.0,112640.0,0.97212245]
[1755870971333,0.00823182,112650.0,112640.0,0.80560245]
[1755870971541,0.00823182,112650.0,112640.0,0.35241173]
[1755870972415,0.00824105,112650.0,112640.0,0.35241173]
[1755870972657,0.00824105,112650.0,112640.0,0.97208245]
[1755870972927,0.00824105,112650.0,112640.0,0.43929648]
[1755870973177,0.00624105,112650.0,112640.0,0.8924872]
[1755870973386,0.00624105,112650.0,112640.0,0.18893173]
[1755870973594,0.25422014,112650.0,112640.0,0.00837492]
[1755870973807,0.25422014,112650.0,112640.0,0.34718173]
[1755870974023,0.25422014,112650.0,112640.0,0.00614492]
[1755870974250,0.25522014,112650.0,112640.0,0.00614492]
[1755870974471,0.07767909,112650.0,112640.0,0.35014173]
[1755870974685,0.00724105,112650.0,112640.0,0.35014173]
[1755870974896,0.00724105,112650.0,112640.0,0.18370173]
[1755870975099,0.00724105,112650.0,112640.0,0.35014173]
[1755870975759,0.0372849,112650.0,112640.0,0.35014173]
[1755870976358,0.28526399,112650.0,112640.0,0.18370173]
[1755870976574,0.0372849,112650.0,112640.0,0.35010173]
[1755870977638,0.0372849,112650.0,112640.0,0.96977245]
[1755870977839,0.0372849,112650.0,112640.0,0.35010173]
[1755870978042,0.0372849,112650.0,112640.0,0.96977245]
[1755870978263,0.0372849,112650.0,112640.0,0.43698648]
[1755870978476,0.00724105,112650.0,112640.0,1.07410622]
[1755870978825,0.001,112650.0,112640.0,1.07410622]
[1755870979004,0.001,112650.0,112640.0,1.43910622]
[1755870979211,0.001,112650.0,112640.0,1.48910622]
[1755870979438,0.07043804,112690.0,112680.0,0.17749378]
[1755870979634,0.12510924,112690.0,112680.0,0.17749378]
[1755870979834,0.12510924,112690.0,112680.0,0.9635245]
[1755870980009,0.10594701,112690.0,112680.0,0.9635245]
[1755870980413,0.10594701,112690.0,112680.0,0.7971645]
[1755870980635,0.10642871,112690.0,112680.0,0.9635245]
[1755870980855,0.00671987,112690.0,112680.0,1.39040925]
[1755870981057,0.00971987,112690.0,112680.0,1.39140925]
[1755870981310,0.00971987,112690.0,112680.0,1.39340925]
[1755870981520,0.00971147,112690.0,112680.0,1.39340925]
[1755870981685,0.01071147,112690.0,112680.0,1.39440925]
[1755870981900,0.0044817,112690.0,112680.0,1.39440925]
[1755870982162,0.0044817,112690.0,112680.0,1.39436925]
[1755870982520,0.01070769,112690.0,112680.0,1.39436925]
[1755870982721,0.01070769,112690.0,112680.0,1.39336925]
[1755870982946,0.01070769,112690.0,112680.0,0.77269853]
[1755870982947,0.00670769,112690.0,112680.0,0.77269853]
[1755870983152,0.00770769,112690.0,112680.0,1.22804925]
[1755870983385,0.0014817,112690.0,112680.0,1.39436925]
[1755870983598,0.0014817,112690.0,112680.0,1.39236925]
[1755870983736,0.0024817,112690.0,112680.0,1.39536925]
[1755870983939,0.0024817,112690.0,112680.0,1.39636925]
[1755870984143,0.0024817,112690.0,112680.0,1.39632925]
[1755870984576,0.0024817,112690.0,112680.0,1.22904925]
[1755870984770,0.0024817,112690.0,112680.0,0.34877378]
[1755870985534,0.0024817,112690.0,112680.0,0.35077378]
[1755870988207,0.0024817,112690.0,112680.0,0.35073378]
[1755870988425,0.0024817,112690.0,112680.0,0.9704045]
[1755870988842,0.0024817,112690.0,112680.0,1.05728925]
[1755870989265,0.0024817,112690.0,112680.0,1.41473827]
[1755870989916,0.0024817,112690.0,112680.0,1.40973827]
[1755870989917,0.0004817,112690.0,112680.0,1.40973827]
[1755870990130,0.0014817,112690.0,112680.0,1.41073827]
[1755870990344,0.0014817,112690.0,112680.0,0.77357853]
[1755870990573,0.24939777,112690.0,112680.0,0.34469378]
[1755870990787,0.24939777,112690.0,112680.0,0.005]
[1755870990788,0.25039777,112690.0,112680.0,0.005]
[1755870991016,0.25039777,112690.0,112680.0,0.17216]
[1755870991226,0.25039777,112690.0,112680.0,0.006]
[1755870991430,0.25039777,112690.0,112680.0,0.17116]
[1755870991640,0.24839777,112690.0,112680.0,0.16616]
[1755870991841,0.24839777,112690.0,112680.0,0.16816]
[1755870991842,0.25139777,112690.0,112680.0,0.16816]
[1755870992060,0.25139777,112690.0,112680.0,0.002]
[1755870992275,0.25139777,112690.0,112680.0,0.16816]
[1755870992709,0.87106849,112690.0,112680.0,0.16816]
[1755870992924,0.95793814,112690.0,112680.0,0.16816]
[1755870993377,0.33826742,112690.0,112680.0,0.16816]
[1755870993599,0.97182901,112690.0,112680.0,0.16816]
[1755870993804,0.97182901,112690.0,112680.0,0.16812]
[1755870994245,0.26228864,112690.0,112680.0,0.001]
[1755870994456,0.88895936,112690.0,112680.0,0.16812]
[1755870994666,0.26928864,112690.0,112680.0,0.16712]
[1755870995111,0.1988506,112690.0,112680.0,0.16712]
[1755870996211,0.2008506,112690.0,112680.0,0.16712]
[1755870996625,0.18695973,112690.0,112680.0,0.16712]
[1755870997273,0.19318494,112690.0,112680.0,0.16712]
[1755870997502,0.81285566,112690.0,112680.0,0.16712]
[1755870997921,0.18695973,112690.0,112680.0,0.16712]
[1755870998142,0.18695973,112690.0,112680.0,0.34683245]
[1755870998365,0.18695973,112690.0,112680.0,0.34461378]
[1755870998592,0.0094817,112690.0,112680.0,0.34461378]
[1755870999234,0.0074817,112690.0,112680.0,0.34461378]
[1755870999445,0.0004817,112690.0,112680.0,0.34361378]
[1755870999659,0.0014817,112690.0,112680.0,0.34461378]
[1755871000097,0.17895973,112690.0,112680.0,0.34461378]
[1755871000311,0.17895973,112690.0,112680.0,0.16708]
[1755871000522,0.17995973,112690.0,112680.0,0.16908]
[1755871000728,0.17995973,112690.0,112680.0,0.34657378]
[1755871000945,0.17995973,112690.0,112680.0,0.003]
[1755871001163,0.79963045,112690.0,112680.0,0.16804]
[1755871001448,0.17749378,112680.0,112670.0,0.06828]
[1755871001661,0.17749378,112680.0,112670.0,0.23432]
[1755871002075,0.17749378,112680.0,112670.0,0.06828]
[1755871002290,0.17749378,112680.0,112670.0,0.23432]
[1755871002505,0.17749378,112680.0,112670.0,0.06828]
[1755871002726,0.88403415,112680.0,112670.0,0.06828]
[1755871002940,0.7971645,112680.0,112670.0,0.06828]
[1755871003147,0.19138468,112680.0,112670.0,0.23432]
[1755871003354,0.8110554,112680.0,112670.0,0.23432]
[1755871003979,0.8120554,112680.0,112670.0,0.23632]
[1755871004839,0.19238468,112680.0,112670.0,0.23632]
[1755871005678,0.19238468,112680.0,112670.0,0.07028]
[1755871005891,0.19238468,112680.0,112670.0,0.23628]
[1755871006109,0.17849378,112680.0,112670.0,0.23628]
[1755871006526,0.001,112680.0,112670.0,0.41378954]
[1755871007157,0.17849378,112680.0,112670.0,0.41374954]
[1755871007588,0.17849378,112680.0,112670.0,0.23624]
[1755871007796,0.17849378,112680.0,112670.0,0.07028]
[1755871008016,0.17849378,112680.0,112670.0,0.4159684]
[1755871008223,0.001,112680.0,112670.0,0.41374954]
[1755871008435,0.17849378,112680.0,112670.0,0.41374954]
[1755871008646,0.001,112680.0,112670.0,0.41374954]
[1755871009342,0.001,112680.0,112670.0,1.12030501]
[1755871010190,0.02989455,112680.0,112670.0,0.50063429]
[1755871010399,0.001,112680.0,112670.0,0.50063429]
[1755871011713,0.001,112680.0,112670.0,0.41370954]
[1755871012340,0.001,112680.0,112670.0,0.24778954]
[1755871012787,0.001,112680.0,112670.0,0.41366954]
[1755871014681,0.03018957,112680.0,112670.0,0.41366954]
[1755871014892,0.03018957,112680.0,112670.0,0.41362954]
[1755871014893,0.20768335,112680.0,112670.0,0.41362954]
[1755871015102,0.03018957,112680.0,112670.0,0.41362954]
[1755871015523,0.20768335,112680.0,112670.0,0.24778954]
[1755871015734,0.20768335,112680.0,112670.0,0.23612]
[1755871015941,0.20768335,112680.0,112670.0,0.41362954]
[1755871016146,0.20768335,112680.0,112670.0,0.07028]
[1755871016626,0.82735407,112680.0,112670.0,0.23608]
[1755871016837,0.91422372,112680.0,112670.0,0.07028]
[1755871017040,0.91422372,112680.0,112670.0,0.23608]
[1755871017244,0.294553,112680.0,112670.0,0.23608]
[1755871017454,0.20768335,112680.0,112670.0,0.23608]
[1755871018953,0.20768335,112680.0,112670.0,0.41358954]
[1755871019585,0.20768335,112680.0,112670.0,0.23608]
[1755871019788,0.20227809,112680.0,112670.0,0.41358954]
[1755871020230,0.20227809,112680.0,112670.0,0.23604]
[1755871020481,0.02478431,112680.0,112670.0,0.41354954]
[1755871020911,0.17749378,112680.0,112670.0,0.41354954]
[1755871021122,0.17895973,112690.0,112680.0,0.17749378]
[1755871021776,0.17749378,112680.0,112670.0,0.24778954]
[1755871021986,0.17895973,112690.0,112670.0,0.41354954]
[1755871022406,0.17895973,112690.0,112680.0,0.17971245]
[1755871022615,0.17749378,112680.0,112670.0,0.24578954]
[1755871022822,0.17749378,112680.0,112670.0,0.41150954]
[1755871022999,0.17895973,112690.0,112680.0,0.17749378]
[1755871023239,0.20790654,112690.0,112670.0,0.41150954]
[1755871023443,0.20790654,112690.0,112680.0,0.00221867]
[1755871023651,0.20890654,112690.0,112680.0,0.001]
[1755871023853,0.20890654,112690.0,112680.0,0.16672]
[1755871024298,0.20990654,112690.0,112680.0,0.16572]
[1755871024539,0.17749378,112680.0,112670.0,0.07028]
[1755871024716,0.17749378,112680.0,112670.0,0.41350954]
[1755871025966,0.17749378,112680.0,112670.0,0.41150954]
[1755871026175,0.17749378,112680.0,112670.0,0.41146954]
[1755871026382,0.001,112680.0,112670.0,0.41346954]
[1755871026601,0.17849378,112680.0,112670.0,0.41346954]
[1755871027473,0.001,112680.0,112670.0,0.41346954]
[1755871027911,0.001,112680.0,112670.0,1.03314026]
[1755871028337,0.17849378,112680.0,112670.0,0.24778954]
[1755871028555,0.17849378,112680.0,112670.0,0.41342954]
[1755871028758,0.001,112680.0,112670.0,0.41342954]
[1755871032889,0.17849378,112680.0,112670.0,0.24778954]
[1755871033094,0.17849378,112680.0,112670.0,0.41334954]
[1755871033955,0.18045378,112680.0,112670.0,0.41537954]
[1755871034198,0.18045378,112680.0,112670.0,0.23787]
[1755871034415,0.17849378,112680.0,112670.0,0.41537954]
[1755871034648,0.18045378,112680.0,112670.0,0.41537954]
[1755871035485,0.8031445,112680.0,112670.0,0.07028]
[1755871035712,0.89001415,112680.0,112670.0,0.2358]
[1755871035848,0.8031445,112680.0,112670.0,0.2358]
[1755871036464,0.18347378,112680.0,112670.0,0.2358]
[1755871036661,0.17849378,112680.0,112670.0,0.41831954]
[1755871037066,0.18045378,112680.0,112670.0,0.41533954]
[1755871037475,0.18370378,112680.0,112670.0,0.07028]
[1755871037678,0.18045378,112680.0,112670.0,0.23576]
[1755871037882,0.18370378,112680.0,112670.0,0.23576]
[1755871038467,0.17849378,112680.0,112670.0,0.41857954]
[1755871038672,0.17849378,112680.0,112670.0,0.41538954]
[1755871039092,0.001,112680.0,112670.0,0.41857954]
[1755871039313,0.17849378,112680.0,112670.0,0.41857954]
[1755871039757,0.17849378,112680.0,112670.0,0.24107]
[1755871039923,0.17849378,112680.0,112670.0,0.41857954]
[1755871040128,0.18065378,112680.0,112670.0,0.41538954]
[1755871040504,0.001,112680.0,112670.0,0.41538954]
[1755871040711,0.18065378,112680.0,112670.0,0.41326954]
[1755871040911,0.18065378,112680.0,112670.0,0.23576]
[1755871041144,0.18065378,112680.0,112670.0,0.41534954]
[1755871041402,0.17849378,112680.0,112670.0,0.41853954]
[1755871041647,0.001,112680.0,112670.0,0.41853954]
[1755871041932,0.17849378,112680.0,112670.0,0.41534954]
[1755871042190,0.18065378,112680.0,112670.0,0.24990954]
[1755871042445,0.18390378,112680.0,112670.0,0.41322954]
[1755871042952,0.18390378,112680.0,112670.0,0.23568]
[1755871043214,0.18390378,112680.0,112670.0,0.41530954]
[1755871043215,0.18065378,112680.0,112670.0,0.41530954]
[1755871043441,0.001,112680.0,112670.0,0.41849954]
[1755871043705,0.18065378,112680.0,112670.0,0.24990954]
[1755871043967,0.18065378,112680.0,112670.0,0.41318954]
[1755871044180,0.24302299,112690.0,112670.0,0.41530954]
[1755871044379,0.24302299,112690.0,112680.0,0.00221867]
[1755871044607,0.24518299,112690.0,112680.0,0.00433867]
[1755871044821,0.24518299,112690.0,112680.0,0.00221867]
[1755871045475,0.24518299,112690.0,112680.0,0.00433867]
[1755871045678,0.24618299,112690.0,112680.0,0.00221867]
[1755871045879,0.24718299,112690.0,112680.0,0.00221867]
[1755871046098,0.24618299,112690.0,112680.0,0.00221867]
[1755871046316,0.17749378,112680.0,112670.0,0.41637954]
[1755871046519,0.17749378,112680.0,112670.0,0.41849954]
[1755871046726,0.27529462,112690.0,112680.0,0.17749378]
[1755871046935,0.27745462,112690.0,112680.0,0.34497378]
[1755871047395,0.27545462,112690.0,112680.0,0.16536]
[1755871047598,0.27545462,112690.0,112680.0,0.16648]
[1755871047805,0.26156391,112690.0,112680.0,0.16648]
[1755871048010,0.26156391,112690.0,112680.0,0.16744]
[1755871048211,0.26156391,112690.0,112680.0,0.34493378]
[1755871048464,0.25940391,112690.0,112680.0,0.34812378]
[1755871048768,0.25940391,112690.0,112680.0,0.17063]
[1755871048999,0.26156391,112690.0,112680.0,0.17284867]
[1755871049206,0.26256391,112690.0,112680.0,0.17165867]
[1755871049414,0.26581391,112690.0,112680.0,0.00421867]
[1755871049608,0.18996587,112690.0,112680.0,0.17484867]
[1755871049971,0.19212587,112690.0,112680.0,0.35234245]
[1755871050172,0.18996587,112690.0,112680.0,0.35012378]
[1755871050378,0.20874966,112690.0,112680.0,0.35012378]
[1755871050767,0.03127163,112690.0,112680.0,0.35012378]
[1755871050963,0.20874966,112690.0,112680.0,0.35012378]
[1755871051353,0.20874966,112690.0,112680.0,0.18480378]
[1755871051548,0.20874966,112690.0,112680.0,0.00731]
[1755871051796,0.21090966,112690.0,112680.0,0.16728]
[1755871052052,0.21415966,112690.0,112680.0,0.16728]
[1755871052924,0.21415966,112690.0,112680.0,0.002]
[1755871053127,0.21415966,112690.0,112680.0,0.16728]
[1755871053339,0.21415966,112690.0,112680.0,0.002]
[1755871053530,0.21090966,112690.0,112680.0,0.16724]
[1755871054043,0.21090966,112690.0,112680.0,0.34907245]
[1755871054334,0.21090966,112690.0,112680.0,0.34685378]
[1755871054506,0.21090966,112690.0,112680.0,0.16936]
[1755871054721,0.21090966,112690.0,112680.0,0.17157867]
[1755871055662,0.21090966,112690.0,112680.0,0.16945867]
[1755871056279,0.21090966,112690.0,112680.0,0.17157867]
[1755871056487,0.21090966,112690.0,112680.0,0.34907245]
[1755871056637,0.21090966,112690.0,112680.0,0.34685378]
[1755871057309,0.21090966,112690.0,112680.0,0.1672]
[1755871057310,0.21415966,112690.0,112680.0,0.1672]
[1755871057739,0.9400136,112690.0,112680.0,0.1672]
[1755871057934,0.91051699,112690.0,112680.0,0.1672]
[1755871058340,0.29084627,112690.0,112680.0,0.16716]
[1755871058514,1.25051699,112690.0,112680.0,0.16716]
[1755871058951,1.2697148,112690.0,112680.0,0.16716]
[1755871059332,0.17754105,112650.0,112640.0,0.098166]
[1755871059532,0.17754105,112650.0,112640.0,0.0704]
[1755871059533,0.17970105,112650.0,112640.0,0.0704]
[1755871059736,0.17970105,112650.0,112640.0,0.23556]
[1755871059944,0.17970105,112650.0,112640.0,0.23344]
[1755871060152,0.17970105,112650.0,112640.0,0.23556]
[1755871060743,0.17978648,112650.0,112640.0,0.24252]
[1755871060945,0.18078648,112650.0,112640.0,0.2404]
[1755871061365,0.18403648,112650.0,112640.0,0.2404]
[1755871061573,0.8004572,112650.0,112640.0,0.07528]
[1755871061714,0.8037072,112650.0,112640.0,0.2404]
[1755871062056,0.817602,112650.0,112640.0,0.2404]
[1755871062357,0.817602,112650.0,112640.0,0.07528]
[1755871062557,0.817602,112650.0,112640.0,0.2404]
[1755871062762,0.813352,112650.0,112640.0,0.2334]
[1755871062978,0.814352,112650.0,112640.0,0.2374]
[1755871063140,0.19793128,112650.0,112640.0,0.2374]
[1755871063353,0.814352,112650.0,112640.0,0.2374]
[1755871063548,0.814352,112650.0,112640.0,0.2404]
[1755871063713,0.817602,112650.0,112640.0,0.2404]
[1755871063925,0.814352,112650.0,112640.0,0.2404]
[1755871064141,0.814352,112650.0,112640.0,0.2374]
[1755871064378,0.814352,112650.0,112640.0,0.2384]
[1755871064579,0.817602,112650.0,112640.0,0.2384]
[1755871064963,0.814352,112650.0,112640.0,0.2384]
[1755871065173,0.8004572,112650.0,112640.0,0.2384]
[1755871065574,0.83028196,112650.0,112640.0,0.2384]
[1755871066318,0.83353196,112650.0,112640.0,0.2384]
[1755871066952,0.34,112640.0,112630.0,0.00044]
[1755871067162,6.22511459,112640.0,112630.0,0.00044]
[1755871067378,6.23040459,112640.0,112630.0,0.16552]
[1755871067583,6.23040459,112640.0,112630.0,0.00044]
[1755871067796,0.17757258,112630.0,112620.0,4e-05]
[1755871068040,6.1425333,112630.0,112620.0,4e-05]
[1755871068470,6.15643434,112630.0,112620.0,4e-05]
[1755871069863,6.16343434,112630.0,112620.0,4e-05]
[1755871071060,6.16443434,112630.0,112620.0,4e-05]
[1755871071300,5.63163327,112630.0,112620.0,4e-05]
[1755871071547,6.25130399,112630.0,112620.0,4e-05]
[1755871071772,6.29350511,112630.0,112620.0,4e-05]
[1755871072010,6.21163546,112630.0,112620.0,4e-05]
[1755871072240,6.23835046,112630.0,112620.0,4e-05]
[1755871072701,6.25259582,112630.0,112620.0,4e-05]
[1755871072935,6.25559582,112630.0,112620.0,4e-05]
[1755871073167,6.25559553,112630.0,112620.0,4e-05]
[1755871073403,6.34564518,112630.0,112620.0,4e-05]
[1755871074127,6.25877553,112630.0,112620.0,4e-05]
[1755871074449,6.25873622,112630.0,112620.0,4e-05]
[1755871075568,6.24483518,112630.0,112620.0,4e-05]
[1755871075779,6.24481985,112630.0,112620.0,4e-05]
[1755871076787,6.24481309,112630.0,112620.0,4e-05]
[1755871077118,6.35561042,112630.0,112620.0,4e-05]
[1755871077297,0.51760412,112610.0,112600.0,0.1161]
[1755871077503,0.51760412,112610.0,112590.0,0.5]
[1755871077504,0.17761989,112600.0,112590.0,0.5]
[1755871077819,0.61967072,112600.0,112590.0,0.50528]
[1755871078025,0.79940061,112600.0,112590.0,0.50203]
[1755871078172,0.17761989,112600.0,112590.0,0.50528]
[1755871078371,0.79940061,112600.0,112590.0,0.50528]
[1755871078576,0.79944869,112600.0,112590.0,0.50528]
[1755871078999,0.80044869,112600.0,112590.0,0.50528]
[1755871079557,0.79833869,112600.0,112590.0,0.50528]
[1755871080044,0.17866797,112600.0,112590.0,0.50528]
[1755871080244,0.79833869,112600.0,112590.0,0.50528]
[1755871080415,0.17866797,112600.0,112590.0,0.50528]
[1755871080881,0.79833869,112600.0,112590.0,0.50528]
[1755871081290,0.17866797,112600.0,112590.0,0.50528]
[1755871081501,0.34370797,112600.0,112590.0,0.50528]
[1755871083459,0.00104808,112600.0,112590.0,0.68291566]
[1755871083851,0.03129177,112600.0,112590.0,0.68291566]
[1755871084082,0.00104808,112600.0,112590.0,0.68291566]
[1755871084263,0.17866797,112600.0,112590.0,0.68291566]
[1755871084694,0.00104808,112600.0,112590.0,0.68291566]
[1755871084909,0.00104808,112600.0,112590.0,1.38947113]
[1755871085133,0.21035609,112660.0,112630.0,0.17756915]
[1755871085375,0.23646182,112660.0,112650.0,0.00203]
[1755871085574,0.29250382,112660.0,112650.0,0.00203]
[1755871085783,0.29250382,112660.0,112650.0,0.00528]